[Event "FIDE WY-U16 Olympiad 2022"]
[Site "Nakhchivan"]
[Date "2022.10.04"]
[Round "3.15"]
[White "Sakline Mostafa, Sajid"]
[Black "Emran, Muhammad Emir Rasyid"]
[Result "1/2-1/2"]
[ECO "A62"]
[WhiteElo "2001"]
[BlackElo "1634"]
[Annotator "TA"]
[PlyCount "126"]
[EventDate "2022.10.02"]
[EventType "team-tourn"]
[EventCountry "AZE"]
[SourceTitle "playchess.com"]
[Source "ChessBase"]
[SourceQuality "1"]
[WhiteTeam "Bangladesh"]
[BlackTeam "Malaysia"]
[WhiteTeamCountry "BAN"]
[BlackTeamCountry "MAS"]
[TimeControl "40/5400+30:1800+30"]

{[%evp 16,126,33,16,68,40,60,45,42,31,41,31,47,50,44,45,50,47,49,47,41,0,0,0,26,15,13,0,39,52,90,91,100,113,108,120,236,31,48,55,44,7,6,0,13,0,0,0,56,0,0,0,14,0,14,14,26,13,34,6,154,0,69,0,0,7,145,36,49,-12,14,16,35,39,30,30,142,112,331,186,288,73,139,139,70,0,54,45,45,45,95,37,77,37,39,0,53,0,0,0,23,0,31,32,37,0,0,0,0,0,0,0,0]} 1. d4 {[%emt 0:00:05]} Nf6 {[%emt 0:00:02]} 2. c4 {[%emt 0:00:08]} c5 {[%emt 0:00:03]} 3. d5 {[%emt 0:00:02]} e6 {[%emt 0:00:13]} 4. Nc3 {[%emt 0:00:05]} exd5 {[%emt 0:00:09]} 5. cxd5 {[%emt 0:00:02]} d6 {[%emt 0:00:07]} 6. g3 {[%emt 0:00:18]} g6 {[%emt 0:00:21]} 7. Bg2 {[%emt 0:00:02]} Bg7 {[%emt 0:00:09]} 8. Nf3 {[%emt 0:00:13]} O-O {[%emt 0:00:16]} 9. O-O {[%emt 0:00:43]} Qb6 {[%emt 0:06:43] [#] A62: Modern Benoni: Fianchetto Variation without early ...Nbd7.} (9... Re8 $11) 10. Qc2 $146 {[%emt 0:05:07]} ({Predecessor:} 10. e4 Re8 11. Re1 Nbd7 12. h3 a6 13. Qc2 Rb8 14. Bf4 Qc7 15. a4 b5 16. axb5 axb5 17. Bf1 c4 18. Nd4 b4 19. Ncb5 Qb6 20. Bxd6 Rb7 21. Qxc4 {1-0 (21) Burger,H (2166)-Scholz,R (1896) Berlin 2011}) 10... Ng4 {[%emt 0:04:26]} 11. Bf4 {[%emt 0:02:24]} Nd7 {[%emt 0:01:27] White is slightly better.} 12. a4 {[%emt 0:08:02]} (12. Nd2 $5 {[%cal Rd2c4]}) 12... Nge5 {[%emt 0:04:17]} 13. a5 {[%emt 0:04:18]} Qa6 {[%emt 0:01:10]} 14. Nd2 {[%emt 0:06:20]} b5 {[%emt 0:14:14]} 15. axb6 $1 {[%emt 0:00:36]} Qxb6 {[%emt 0:02:24]} 16. Rfb1 {[%emt 0:02:57]} Rb8 {[%emt 0:14:55]} 17. b3 {[%emt 0:10:09]} Qc7 {[%emt 0:19:45]} 18. Nce4 {[%emt 0:21:34][%cal Ob3b4]} Nb6 {[%emt 0:05:23]} 19. Nc3 {[%emt 0:02:07]} Bf5 {[%emt 0:03:42]} 20. e4 {[%emt 0:00:57]} Bd7 {[%emt 0:00:15]} 21. Bf1 {[%emt 0:05:48]} c4 {[%emt 0:06:50]} 22. bxc4 {[%emt 0:02:56]} Nbxc4 {[%emt 0:01:13]} 23. Nd1 $1 {[%emt 0:05:54]} Rbc8 {[%emt 0:05:26] Hoping for ...Nxd2.} 24. Nxc4 {[%emt 0:02:51]} Nxc4 {[%emt 0:00:33]} 25. Ra6 {[%emt 0:00:45]} Be5 {[%emt 0:03:03] [#]} (25... Ne5 $16 26. Qa2 (26. Qxc7 Rxc7 27. Rxd6 g5 $16) 26... Qc5) 26. Bxe5 $2 {[%emt 0:04:52]} ({White should try} 26. Bh6 $1 $18) 26... Nxe5 $14 {[%emt 0:02:02]} 27. Qxc7 {[%emt 0:01:44]} Rxc7 {[%emt 0:00:03]} 28. Bg2 {[%emt 0:04:08] Against Nf3+} Rfc8 $1 {[%emt 0:01:01][%cal Od7b5]} 29. Raa1 {[%emt 0:02:09]} (29. Rxd6 $2 Rc1 30. Rxc1 Rxc1 $19) 29... Kf8 {[%emt 0:01:04]} 30. h4 {[%emt 0:00:23]} Ke7 {[%emt 0:00:03]} 31. Ne3 {[%emt 0:01:37]} Ng4 {[%emt 0:00:09]} (31... a5 $11) 32. Nd1 {[%emt 0:00:39]} (32. Nxg4 $14 Bxg4 33. f3) 32... Ne5 $11 {[%emt 0:00:01]} 33. f3 {[%emt 0:01:39][%cal Bf2f3,Bf3f4][%mdl 32]} Ra8 {[%emt 0:00:26]} 34. Ra6 {[%emt 0:01:53]} Bc8 {[%emt 0:00:49]} 35. Ra3 {[%emt 0:00:42]} Bd7 {[%emt 0:01:22]} 36. f4 {[%emt 0:00:51]} Ng4 {[%emt 0:00:15]} 37. Ra6 {[%emt 0:01:05][%cal Oe4e5]} (37. Bf3 $5 {[%cal Re4e5]} h5 38. Ra6 $16) 37... Bc8 {[%emt 0:00:18]} (37... Rac8 $11) 38. Ra5 $2 {[%emt 0:00:31]} (38. Rc6 $16 Rxc6 39. dxc6) 38... Rb7 {[%emt 0:00:32]} (38... Rc2 $11) 39. Rc1 {[%emt 0:00:34]} (39. Rxb7+ $1 $14 Bxb7 40. Bf3) 39... Bd7 {[%emt 0:00:32]} 40. e5 {[%emt 0:00:42]} Rb5 {[%emt 0:01:07]} (40... a6 $11) 41. Raa1 {[%emt 0:30:50]} (41. Rxb5 $16 Bxb5 42. Rc7+ Kf8 43. Bf3 (43. exd6 Re8 $17)) 41... a5 {[%emt 0:31:23]} 42. exd6+ {[%emt 0:00:02]} (42. e6 $14 Be8 43. Rc7+ Kf8 44. Nc3) 42... Kxd6 {[%emt 0:00:49]} 43. Nc3 {[%emt 0:00:05]} Rb2 {[%emt 0:01:02]} 44. Ne4+ {[%emt 0:01:03]} Ke7 {[%emt 0:00:12]} 45. d6+ {[%emt 0:00:49]} Kd8 {[%emt 0:00:16]} (45... Kf8 $11 {keeps the balance.}) 46. Ng5 {[%emt 0:00:58][%csl LRa8,LRf7,LRh7]} Ra6 {[%emt 0:00:43]} (46... Rab8 $16 {was called for.}) 47. Nxf7+ $18 {[%emt 0:00:48]} Ke8 {[%emt 0:00:02]} 48. Bd5 {[%emt 0:00:57]} (48. Rc7 $18 {Strongly threatening Re1+.} Rd2 49. Bf1) 48... Nf6 {[%emt 0:01:16] [#]} (48... Rd2 $142 49. Bc4 Rc6) 49. Bc4 $1 $16 {[%emt 0:00:55]} Rc6 {[%emt 0:00:45][%cal Oc6c4]} 50. Ng5 {[%emt 0:00:00]} ({But not} 50. Rxa5 Rxc4 51. Rxc4 Kxf7 $11) (50. Ne5 $14 Rxd6 51. Bf7+ (51. Rxa5 Rdd2 $16) 51... Kf8 52. Nc4 (52. Rxa5 Rdd2 $11)) 50... Rxd6 {[%emt 0:00:00]} (50... Kf8 $1 $11) 51. Re1+ {[%emt 0:00:00]} Kf8 {[%emt 0:00:00]} 52. Rxa5 {[%emt 0:00:00] Threatens to win with Ra8+.} Rb8 {[%emt 0:00:00] Against Ra8} ({Better is} 52... Rdd2 $14 53. Ra8+ (53. Ra7 Rg2+ 54. Kh1 Rh2+ 55. Kg1 Rhg2+ 56. Kh1 Rh2+ 57. Kg1 Rhg2+ $11) 53... Kg7) 53. Rae5 {[%emt 0:00:00] White is much more active.} (53. Ra7 $16) 53... Re8 {[%emt 0:00:00]} 54. Bf7 {[%emt 0:00:00]} Rc8 {[%emt 0:00:00]} 55. Re7 {[%emt 0:00:00]} Rd1 {[%emt 0:00:00]} 56. Ba2 {[%emt 0:00:24]} ({White should play} 56. Rxd1 $14 Kxe7 57. Re1+ Kd8 58. Be6) 56... Rxe1+ $11 57. Rxe1 {[%emt 0:00:02]} Rc2 {[%emt 0:00:00]} (57... Rc3 $5 {[%cal Rc3g3]}) 58. Ne6+ {[%emt 0:03:24]} Bxe6 {[%emt 0:00:00]} 59. Bxe6 {[%emt 0:00:03]} Rc3 {[%emt 0:00:00] Against Re3} 60. Kg2 {[%emt 0:00:10]} Nh5 $1 {[%emt 0:00:00] The position is equal.} 61. Kh2 {[%emt 0:01:06]} Rc2+ {[%emt 0:00:00]} 62. Kh3 {[%emt 0:00:35]} Rc3 {[%emt 0:00:00][%csl LRf4,LRg3] Prevents Re3.} 63. Kh2 {[%emt 0:00:01]} Rc2+ {[%emt 0:00:00] Weighted Error Value: White=0.31/Black=0.36} 1/2-1/2

[Event "FIDE WY-U16 Olympiad 2022"]
[Site "Nakhchivan"]
[Date "2022.10.04"]
[Round "3.15"]
[White "Kirtadze, Anastasia"]
[Black "Mahdavi, Reza"]
[Result "0-1"]
[ECO "B49"]
[WhiteElo "1814"]
[BlackElo "2324"]
[Annotator "TA"]
[PlyCount "108"]
[EventDate "2022.10.02"]
[EventType "team-tourn"]
[EventCountry "AZE"]
[SourceTitle "playchess.com"]
[Source "ChessBase"]
[SourceQuality "1"]
[WhiteTeam "Georgia"]
[BlackTeam "Iran"]
[WhiteTeamCountry "GEO"]
[BlackTeamCountry "IRI"]
[TimeControl "40/5400+30:1800+30"]

{[%evp 27,108,28,34,32,62,57,55,67,55,14,25,22,52,0,10,0,26,20,26,32,27,0,0,0,0,0,0,0,0,0,0,0,0,-54,0,0,0,-8,0,0,0,0,0,0,0,0,0,0,8,8,57,0,0,-8,-9,-38,0,0,0,0,0,0,0,-8,-8,-8,-8,-17,0,-8,-8,-150,-164,-3378,-2562,-7673,-12827,-12825,-10549,-1817,-1206,-29986,-29987]} 1. e4 {[%emt 0:00:02]} c5 {[%emt 0:00:12]} 2. Nf3 {[%emt 0:00:07]} e6 {[%emt 0:00:07]} 3. d4 {[%emt 0:00:08]} cxd4 {[%emt 0:00:05]} 4. Nxd4 {[%emt 0:00:05]} Nc6 {[%emt 0:00:05]} 5. Nc3 {[%emt 0:00:54]} Qc7 {[%emt 0:00:08]} 6. Be3 {[%emt 0:01:09]} a6 {[%emt 0:00:10]} 7. Be2 {[%emt 0:01:15]} Nf6 {[%emt 0:00:09]} 8. O-O {[%emt 0:00:08]} Bb4 {[%emt 0:00:05]} 9. Na4 {[%emt 0:02:56]} Be7 {[%emt 0:00:08]} 10. Nxc6 {[%emt 0:03:33]} bxc6 {[%emt 0:00:15]} 11. Nb6 {[%emt 0:00:07]} Rb8 {[%emt 0:00:06][%cal Ba8b8,Bb8b6,Bb6d6][%mdl 32]} 12. Nxc8 {[%emt 0:00:40]} Qxc8 {[%emt 0:00:06]} 13. Bd4 {[%emt 0:03:35]} c5 {[%emt 0:00:46]} 14. Be5 {[%emt 0:02:13]} Rb6 {[%emt 0:00:09]} 15. b3 {[%emt 0:03:44] B49: Sicilian: Taimanov: 5 Nc3 Qc7 6 Be3 a6 7 Be2.} Nxe4 {[%emt 0:00:45]} 16. Bxg7 {[%emt 0:10:54] A strong pair of Bishops.} Rg8 {[%emt 0:00:07]} 17. Be5 {[%emt 0:08:40] White is slightly better.} Bd6 {[%emt 0:00:07]} 18. Bxd6 {[%emt 0:05:58]} (18. Bg3 $5) 18... Rxd6 {[%emt 0:00:15]} 19. Bd3 {[%emt 0:00:54]} Nf6 {[%emt 0:00:39]} 20. Qf3 {[%emt 0:08:46]} ({Better is} 20. f4 $14) 20... Ke7 {[%emt 0:01:25] [#]} 21. Rad1 $146 {[%emt 0:03:59]} ({Predecessor:} 21. Qe2 h5 22. f4 Qc7 23. Rf3 Rd4 24. Raf1 Rg4 25. f5 Nd5 26. fxe6 fxe6 27. Rf7+ {1-0 (78) Hagara,E (2372)-Chytilek,R (2384) Slovakia 2007}) 21... Qc7 {[%emt 0:18:48]} 22. Be2 {[%emt 0:06:10]} Rxd1 {[%emt 0:01:25]} 23. Rxd1 {[%emt 0:00:19]} d5 {[%emt 0:00:09]} 24. Bxa6 Ra8 {[%emt 0:02:46]} 25. Bd3 {[%emt 0:06:42]} Rxa2 {[%emt 0:00:10]} 26. Qe2 {[%emt 0:04:38]} h5 {[%emt 0:06:04]} 27. g3 {[%emt 0:04:40]} h4 {[%emt 0:03:24]} 28. Re1 {[%emt 0:01:26]} hxg3 {[%emt 0:01:27]} 29. fxg3 {[%emt 0:02:42]} Qa7 {[%emt 0:05:59] [#] Strongly threatening ...c4+.} 30. Kg2 {[%emt 0:04:13]} ({White should try} 30. Qe3 $11) 30... Ra1 {[%emt 0:00:10]} ({Black should play} 30... Qb7 $1 $15 31. Kg1 Qb4) 31. Rxa1 {[%emt 0:02:16]} Qxa1 $11 {[%emt 0:00:07][%mdl 4096] Endgame KQB-KQN} 32. g4 {[%emt 0:01:22]} Nd7 {[%emt 0:15:15]} 33. h3 {[%emt 0:02:10]} Qc3 {[%emt 0:03:44]} 34. Qf2 {[%emt 0:01:59]} c4 {[%emt 0:16:25]} 35. bxc4 {[%emt 0:00:32]} dxc4 {[%emt 0:00:05]} 36. Be4 {[%emt 0:00:40]} Qe5 {[%emt 0:01:08]} 37. Bf3 {[%emt 0:00:24]} Kf8 {[%emt 0:05:08]} 38. Qd2 {[%emt 0:01:37]} Ke7 {[%emt 0:03:10]} (38... Nc5 $11) 39. Qf2 {[%emt 0:01:14]} (39. Qb4+ $14 Qc5 40. Qxc5+ Nxc5 41. h4) 39... Nf8 {[%emt 0:01:48]} 40. Qa7+ {[%emt 0:01:19]} Kf6 {[%emt 0:00:08]} 41. Qf2 {[%emt 0:31:54]} (41. Bc6 {is interesting.} Ng6 42. Qf2+ Kg5 43. Qd2+) 41... Kg7 {[%emt 0:30:44]} 42. Qe2 {[%emt 0:00:37]} Qc3 {[%emt 0:01:06]} 43. Be4 {[%emt 0:00:35]} Nd7 {[%emt 0:00:33]} 44. Bc6 {[%emt 0:01:42]} Ne5 {[%emt 0:02:23]} 45. Be4 {[%emt 0:00:19]} Qd4 {[%emt 0:00:06]} 46. h4 {[%emt 0:02:24]} f6 {[%emt 0:00:31]} 47. Kh3 {[%emt 0:01:05]} Kh6 {[%emt 0:01:06]} 48. Kg2 {[%emt 0:00:46]} c3 {[%emt 0:00:30] ...Qd2 is the strong threat.} 49. Kf1 {[%emt 0:00:45]} (49. Kg3 $11 {remains equal.}) 49... Nc4 $17 {[%emt 0:00:45] Threatens to win with ...Nd2+. Black has more active pieces.} ({Of course not} 49... Qd2 50. Qxd2+ cxd2 51. Ke2 $11) 50. g5+ $2 {[%emt 0:00:39]} (50. Kg2) 50... fxg5 $19 {[%emt 0:00:05]} 51. hxg5+ {[%emt 0:00:06]} Kxg5 {[%emt 0:00:26]} 52. Qg2+ {[%emt 0:00:47] [#]} Kf4 $1 {[%emt 0:00:04]} 53. Qf3+ {[%emt 0:00:07]} Ke5 {[%emt 0:00:04] ( -> ...Nd2+)} 54. Qe2 {[%emt 0:01:03]} Qxe4 {[%emt 0:00:08] Weighted Error Value: White=0.49/Black=0.08 (flawless)} 0-1

[Event "FIDE WY-U16 Olympiad 2022"]
[Site "Nakhchivan"]
[Date "2022.10.04"]
[Round "3.16"]
[White "Karimi, Setayesh"]
[Black "kiladze, Luka"]
[Result "0-1"]
[ECO "E81"]
[WhiteElo "1925"]
[BlackElo "1894"]
[Annotator "TA"]
[PlyCount "78"]
[EventDate "2022.10.02"]
[EventType "team-tourn"]
[EventCountry "AZE"]
[SourceTitle "playchess.com"]
[Source "ChessBase"]
[SourceQuality "1"]
[WhiteTeam "Iran"]
[BlackTeam "Georgia"]
[WhiteTeamCountry "IRI"]
[BlackTeamCountry "GEO"]
[TimeControl "40/5400+30:1800+30"]

{[%evp 19,78,31,41,33,70,68,82,0,0,0,0,7,4,-68,-60,-81,0,-20,110,23,39,60,58,68,61,60,81,72,108,66,112,101,88,96,97,67,64,-48,-19,-36,-33,-275,-291,-667,0,0,0,0,0,-29988,-29989,-29989,-29990,-29990,-29991,-29991,-12813,-29993,-29986,-29996,-29997]} 1. d4 {[%emt 0:00:03]} Nf6 {[%emt 0:00:08]} 2. c4 {[%emt 0:00:04]} g6 {[%emt 0:00:07]} 3. Nc3 {[%emt 0:00:06]} Bg7 {[%emt 0:00:02]} 4. e4 {[%emt 0:00:07]} d6 {[%emt 0:00:06]} 5. f3 {[%emt 0:00:04]} O-O {[%emt 0:00:07]} 6. Bg5 {[%emt 0:00:09]} c5 {[%emt 0:00:29]} 7. d5 {[%emt 0:00:05]} e6 {[%emt 0:00:33]} 8. Qd2 {[%emt 0:00:09]} exd5 {[%emt 0:00:05]} 9. cxd5 {[%emt 0:00:04]} a6 {[%emt 0:00:45]} 10. a4 {[%emt 0:00:15]} Nbd7 {[%emt 0:00:15]} 11. Nh3 {[%emt 0:01:19] A65: Modern Benoni: 6 e4.} Qc7 {[%emt 0:00:28]} 12. Be2 {[%emt 0:02:49]} Rb8 {[%emt 0:00:49]} 13. O-O {[%emt 0:03:53]} (13. Nf2 $16) 13... c4 $1 $11 {[%emt 0:00:42]} 14. Nf2 {[%emt 0:07:29]} b5 $1 {[%emt 0:03:28]} 15. axb5 {[%emt 0:00:28]} axb5 {[%emt 0:00:06] [#]} 16. Rfc1 $146 {[%emt 0:05:17]} ({White should try} 16. b4 $11) ({Predecessor:} 16. b4 Ne5 17. Be3 Bd7 18. Rac1 Rfc8 19. f4 Neg4 20. Bxg4 Nxg4 21. Nxg4 Bxg4 22. f5 gxf5 23. exf5 {1-0 (33) Miton,K (2612)-Kantans,T (2513) Tallinn 2016}) 16... Nc5 $1 $15 {[%emt 0:02:38]} 17. Bd1 {[%emt 0:00:12] [#]} Bd7 {[%emt 0:02:18]} (17... Nfd7 $1 $17) 18. Bh6 {[%emt 0:17:10]} b4 {[%emt 0:09:18] [#]} (18... Ne8 $11) 19. Ne2 {[%emt 0:01:33]} (19. Bxg7 $1 $16 Kxg7 20. Ne2) 19... c3 {[%emt 0:00:09]} 20. bxc3 {[%emt 0:01:17] Threatens to win with Bxg7.} Bxh6 {[%emt 0:03:48]} 21. Qxh6 {[%emt 0:00:10]} b3 {[%emt 0:01:16] White must now prevent ...b2.} 22. Rcb1 {[%emt 0:03:51]} Bb5 {[%emt 0:04:30]} (22... b2 $2 23. Ra2 $16) 23. Nd4 {[%emt 0:27:40][%cal Be2d4,Bd4c6,Bc6b4][%mdl 32]} Bc4 {[%emt 0:05:23]} 24. Qd2 {[%emt 0:01:48] Strongly threatening Nc6.} Ra8 {[%emt 0:02:00]} (24... Qb6 $1 $14) 25. Rxa8 {[%emt 0:01:22]} Rxa8 {[%emt 0:00:05]} 26. Nc6 {[%emt 0:04:24] Hoping for Qd4.} ({Inferior is} 26. Bxb3 Bxb3 27. Qg5 (27. Nxb3 $2 Nxb3 28. Qd1 Nc5 $19) 27... Ne8 $17) 26... Bb5 {[%emt 0:06:40]} (26... Ra2 $2 27. Qd4 $18) 27. Nb4 {[%emt 0:02:14]} Nfd7 {[%emt 0:01:19]} 28. Ng4 {[%emt 0:01:51]} (28. h3 $14) 28... h5 {[%emt 0:01:21]} 29. Ne3 {[%emt 0:00:30]} Ne5 {[%emt 0:11:53]} 30. Bxb3 $2 {[%emt 0:06:36]} (30. h3 $15) 30... Nxb3 $19 {[%emt 0:00:02]} 31. Rxb3 {[%emt 0:00:07]} (31. Qe1 Nc5 32. Qd2) 31... Nc4 $2 {[%emt 0:00:03]} (31... Ra1+ $19 32. Kf2 Qe7) 32. Nxc4 $1 $11 {[%emt 0:04:57]} Ra1+ {[%emt 0:00:14]} (32... Bxc4 $2 33. Rb1 $18) 33. Kf2 {[%emt 0:00:12]} Qxc4 {[%emt 0:00:55]} 34. Qb2 {[%emt 0:02:40][%mdl 8192]} (34. Rb2 $11) 34... Qf1+ {[%emt 0:02:25]} 35. Kg3 {[%emt 0:02:53]} Qe1+ {[%emt 0:00:11]} 36. Kf4 {[%emt 0:00:58]} Qh4+ {[%emt 0:00:08]} 37. g4 {[%emt 0:00:34]} Qf6+ {[%emt 0:02:52]} (37... Rf1 $142 38. Qg2 Qf6+ 39. Kg3 h4+ 40. Kh3 Rxf3+ 41. Qxf3 Qxf3+ 42. Kxh4 Qf2+ 43. Kg5 f6+ 44. Kxg6 Be8+ 45. Kh6 Qxh2#) 38. Kg3 {[%emt 0:02:57]} Rg1+ {[%emt 0:00:19]} 39. Kf2 {[%emt 0:00:30]} Rf1+ {[%emt 0:00:09] Weighted Error Value: White=0.87/Black=0.50} 0-1

[Event "FIDE WY-U16 Olympiad 2022"]
[Site "Nakhchivan"]
[Date "2022.10.04"]
[Round "3.16"]
[White "Thamil Manni, Swetha"]
[Black "Omnia Binta Yusuf, Lubaba"]
[Result "1-0"]
[ECO "A45"]
[WhiteElo "1428"]
[BlackElo "1678"]
[Annotator "NA RC COMBH"]
[PlyCount "57"]
[EventDate "2022.10.02"]
[EventType "team-tourn"]
[EventCountry "AZE"]
[SourceTitle "playchess.com"]
[Source "ChessBase"]
[SourceQuality "1"]
[WhiteTeam "Malaysia"]
[BlackTeam "Bangladesh"]
[WhiteTeamCountry "MAS"]
[BlackTeamCountry "BAN"]
[TimeControl "40/5400+30:1800+30"]

1. d4 {[%emt 0:00:09]} Nf6 {[%emt 0:00:14]} 2. Bf4 {[%emt 0:00:09]} d5 {[%emt 0:00:14]} 3. e3 {[%emt 0:00:15]} e6 {[%emt 0:00:13]} 4. Nd2 {[%emt 0:00:23]} Bd6 {[%emt 0:00:10]} 5. Bg3 {[%emt 0:00:06]} c5 {[%emt 0:00:47]} 6. c3 {[%emt 0:00:25]} O-O {[%emt 0:01:02]} 7. Bd3 {[%emt 0:01:26]} Nc6 {[%emt 0:01:07]} 8. Ngf3 {[%emt 0:00:24]} b6 {[%emt 0:01:08]} 9. Qe2 {[%emt 0:02:09]} Bb7 {[%emt 0:04:22]} 10. Rd1 {[%emt 0:01:07]} Qc7 {[%emt 0:03:21]} 11. e4 {[%emt 0:04:32]} e5 {[%emt 0:16:51]} 12. exd5 {[%emt 0:16:10]} Nxd5 {[%emt 0:01:39]} 13. dxe5 {[%emt 0:14:10]} Nxe5 {[%emt 0:09:57]} 14. Nxe5 {[%emt 0:06:48]} Rfe8 {[%emt 0:26:51]} 15. f4 {[%emt 0:13:55]} f6 {[%emt 0:02:44]} 16. Qe4 {[%emt 0:02:28]} Kf8 {[%emt 0:06:56]} 17. O-O {[%emt 0:14:30]} fxe5 {[%emt 0:05:28]} 18. fxe5+ {[%emt 0:02:08]} Nf6 {[%emt 0:00:34]} 19. Qxh7 {[%emt 0:07:00]} Bxe5 {[%emt 0:06:25]} 20. Qh8+ {[%emt 0:02:16]} Kf7 {[%emt 0:01:34]} 21. Bc4+ {[%emt 0:01:54]} Kg6 {[%emt 0:01:46]} 22. Bd3+ {[%emt 0:01:54]} Kf7 {[%emt 0:00:15]} 23. Qh5+ {[%emt 0:00:41]} Kf8 {[%emt 0:03:09]} 24. Bg6 {[%emt 0:03:19]} Kg8 {[%emt 0:01:44]} 25. Qh3 {[%emt 0:01:53]} Bc8 {[%emt 0:01:47]} 26. Qh4 {[%emt 0:00:30]} Bxg3 {[%emt 0:00:19]} 27. hxg3 {[%emt 0:01:03]} Re7 {[%emt 0:01:38]} 28. Ne4 {[%emt 0:00:42]} Nxe4 {[%emt 0:00:25]} 29. Qh7# 1-0

[Event "FIDE WY-U16 Olympiad 2022"]
[Site "Nakhchivan"]
[Date "2022.10.04"]
[Round "3.17"]
[White "Caputcuoglu, Zeki Berke"]
[Black "Tarhan, Adar"]
[Result "0-1"]
[ECO "C78"]
[WhiteElo "2370"]
[BlackElo "2320"]
[Annotator "TA"]
[PlyCount "94"]
[EventDate "2022.10.02"]
[EventType "team-tourn"]
[EventCountry "AZE"]
[SourceTitle "playchess.com"]
[Source "ChessBase"]
[SourceQuality "1"]
[WhiteTeam "Turkey"]
[BlackTeam "Turkey"]
[WhiteTeamCountry "TUR"]
[BlackTeamCountry "TUR"]
[TimeControl "40/5400+30:1800+30"]

{[%evp 15,94,18,41,17,55,76,66,67,61,58,73,54,59,66,53,41,42,52,57,51,53,0,0,0,0,0,0,0,40,37,113,125,112,34,97,92,165,94,136,114,113,93,235,97,96,105,96,9,8,9,175,175,167,0,0,0,0,0,0,0,0,-10,-10,-18,-11,-133,-128,-751,-777,-29975,-29975,-29970,-29972,-29980,-29981,-29982,-29982,-29984,-29985,-29984,-29985]} 1. e4 {[%emt 0:00:04]} e5 {[%emt 0:00:12]} 2. Nf3 {[%emt 0:00:09]} Nc6 {[%emt 0:00:05]} 3. Bb5 {[%emt 0:00:10]} a6 {[%emt 0:00:07]} 4. Ba4 {[%emt 0:00:06]} Nf6 {[%emt 0:00:04]} 5. O-O {[%emt 0:00:05]} b5 {[%emt 0:00:05]} 6. Bb3 {[%emt 0:00:06]} Bb7 {[%emt 0:03:25]} 7. d3 {[%emt 0:01:31]} Bc5 {[%emt 0:02:12]} 8. c3 {[%emt 0:01:33]} d6 {[%emt 0:00:45]} 9. a4 {[%emt 0:01:05] is the legacy move (9.Nbd2). C78: Ruy Lopez: Archangelsk and Möller Defences.} Bb6 {[%emt 0:02:48]} 10. axb5 {[%emt 0:05:44]} axb5 {[%emt 0:00:06]} 11. Rxa8 {[%emt 0:00:04] White is slightly better.} Bxa8 {[%emt 0:07:38]} 12. Na3 {[%emt 0:01:19][%cal Bb1a3,Ba3c2,Bc2e3][%mdl 32]} Na7 {[%emt 0:02:01]} 13. Nc2 {[%emt 0:07:12] [#]} (13. Nh4 {feels hotter.} O-O 14. Nf5 Bb7 15. Nc2) 13... Nc8 $146 {[%emt 0:02:45]} ({Predecessor:} 13... Nc6 14. Be3 Bxe3 15. Nxe3 O-O 16. Nf5 Ne7 17. N3h4 g6 18. Nh6+ Kg7 19. Qd2 c5 {1-0 (37) Kovanova,B (2379)-Turova,I (2381) Kallithea 2008}) 14. Ne3 {[%emt 0:28:06]} Ne7 {[%emt 0:04:23]} 15. Ng5 {[%emt 0:07:08]} O-O {[%emt 0:02:21]} 16. Ng4 {[%emt 0:05:59]} Ng6 {[%emt 0:01:02]} 17. Qf3 {[%emt 0:05:19]} d5 {[%emt 0:03:54]} 18. Qf5 {[%emt 0:08:41]} (18. Nxf6+ $1 $14 gxf6 19. Nh3) 18... Nxg4 $11 {[%emt 0:02:37]} 19. Qxg4 {[%emt 0:00:16]} h6 {[%emt 0:01:03]} 20. Nf3 {[%emt 0:01:09]} c5 {[%emt 0:01:05]} 21. Rd1 {[%emt 0:02:54]} Kh8 {[%emt 0:10:19]} 22. h4 {[%emt 0:01:22]} dxe4 {[%emt 0:00:52]} ({Weaker is} 22... c4 23. dxc4 bxc4 24. Bxc4 $16) (22... Qd6 $14) 23. dxe4 $16 {[%emt 0:00:12]} Qf6 {[%emt 0:01:29] [#]} 24. h5 {[%emt 0:06:23]} (24. Bg5 $1 $16 {[%cal Rg5f6][%mdl 512]} Qc6 25. Bd5) 24... Ne7 {[%emt 0:01:02]} (24... c4 $14) 25. Be3 {[%emt 0:01:48]} Nc6 {[%emt 0:10:23] [#]} (25... Kg8 $16 {was necessary.}) 26. Bc2 {[%emt 0:05:21]} (26. Bd5 $1 $18) 26... Rd8 {[%emt 0:05:06]} 27. Rxd8+ {[%emt 0:03:31]} Qxd8 {[%emt 0:00:08]} 28. Qf5 {[%emt 0:00:21][%csl LRe5,LRf7]} Qc7 {[%emt 0:03:33]} (28... Qe8 $16) 29. b4 {[%emt 0:02:10]} (29. Bb3 $18 {has better winning chances.} f6 30. Nh4 (30. Qe6 c4 $18)) 29... cxb4 {[%emt 0:02:10] Hoping for ...Bxe3.} 30. Bxb6 {[%emt 0:00:18]} Qxb6 {[%emt 0:00:04]} 31. Nxe5 {[%emt 0:00:25]} (31. Qxf7 $16 {Threatening mate with Qe8+.} Qd8 32. Qf5) 31... Nxe5 $11 {[%emt 0:00:26]} 32. Qxe5 $16 {[%emt 0:00:05][%mdl 4096] Endgame Qe8+ would kill now. KQB-KQB} Qd8 {[%emt 0:00:58] Against Qe8+} (32... Qc6 $11) 33. cxb4 $18 {[%emt 0:00:23]} Qd2 {[%emt 0:00:40] [#]} 34. Qe8+ $2 {[%emt 0:05:56]} (34. Qc5 $1 $18 {[%cal Rc5c8]}) 34... Kh7 $11 {[%emt 0:00:05]} 35. Qxa8 {[%emt 0:00:32]} Qxc2 {[%emt 0:00:20] KQ-KQ} 36. Qd5 {[%emt 0:00:24][%csl LRb5,LRf7] Inhibits Qd1+. Threatens to win with Qf5+.} Qb1+ {[%emt 0:00:41]} 37. Kh2 {[%emt 0:00:08]} Qxb4 {[%emt 0:00:05]} 38. Qf5+ {[%emt 0:00:57]} Kg8 {[%emt 0:00:07] ...Qc4 is the strong threat.} 39. Qc8+ {[%emt 0:00:30]} Qf8 {[%emt 0:00:07]} 40. Qc3 {[%emt 0:00:28]} (40. Qc7 $1 $11) 40... b4 $17 {[%emt 0:00:36][%cal Bb5b4,Bb4b3,Bb3b2][%mdl 32]} 41. Qd3 {[%emt 0:30:35][%mdl 8192]} (41. Qe5 $17) 41... Qb8+ $19 {[%emt 0:30:11]} 42. g3 {[%emt 0:00:05]} b3 {[%emt 0:00:23] Black mates.} 43. Qb1 {[%emt 0:00:00]} b2 {[%emt 0:00:00]} 44. f4 {[%emt 0:00:00]} Qb4 {[%emt 0:00:00]} 45. Kh3 {[%emt 0:00:00]} Qc3 {[%emt 0:00:00]} 46. Qd1 {[%emt 0:00:00]} Qc1 {[%emt 0:00:00]} 47. Qd8+ {[%emt 0:00:00]} Kh7 {[%emt 0:00:00] Never resign too early!  Weighted Error Value: White=0.60/Black=0.21 (precise)} 0-1